[Event "29. Klatovy A 2023"]
[Site "Klatovy"]
[Date "2023.07.04"]
[Round "4.1"]
[White "Vorisek, Jaroslav"]
[Black "Slovak, Kilian"]
[Result "1/2-1/2"]
[ECO "E60"]
[WhiteElo "2260"]
[BlackElo "2297"]
[PlyCount "102"]
[EventDate "2023.07.01"]
[EventType "swiss"]
[EventRounds "9"]
[EventCountry "CZE"]
[TimeControl "120+30"]

1. d4 {[%emt 0:00:05]} Nf6 {[%emt 0:00:15]} 2. Nf3 {[%emt 0:00:12]} g6 {[%emt 0:00:07]} 3. g3 {[%emt 0:00:14]} Bg7 {[%emt 0:00:06]} 4. Bg2 {[%emt 0:00:06]} O-O {[%emt 0:00:08]} 5. c4 {[%emt 0:00:41]} d6 {[%emt 0:00:16]} 6. O-O {[%emt 0:00:08]} Bf5 {[%emt 0:00:07]} 7. Nh4 {[%emt 0:12:42]} Be4 {[%emt 0:00:16]} 8. f3 {[%emt 0:00:19]} Bc6 {[%emt 0:00:13]} 9. e4 {[%emt 0:07:44]} e5 {[%emt 0:01:10]} 10. Be3 {[%emt 0:05:18]} Bd7 {[%emt 0:05:34]} 11. Qd2 {[%emt 0:03:57]} Nh5 {[%emt 0:14:55]} 12. Nc3 {[%emt 0:13:35]} Nc6 {[%emt 0:02:46]} 13. d5 {[%emt 0:09:34]} Nb8 {[%emt 0:00:21]} 14. Bh6 {[%emt 0:06:56]} a5 {[%emt 0:04:31]} 15. Rf2 {[%emt 0:06:47]} Na6 {[%emt 0:02:18]} 16. Bf1 {[%emt 0:05:24]} Nc5 {[%emt 0:05:17]} 17. Be2 {[%emt 0:00:16]} Nf4 {[%emt 0:06:26]} 18. Bxg7 {[%emt 0:13:17]} Nh3+ {[%emt 0:02:23]} 19. Kg2 {[%emt 0:00:15]} Kxg7 {[%emt 0:00:18]} 20. Rff1 {[%emt 0:00:11]} Ng5 {[%emt 0:02:58]} 21. Kh1 {[%emt 0:03:48]} h6 {[%emt 0:15:44]} 22. Bd3 {[%emt 0:02:45]} c6 {[%emt 0:04:46]} 23. Bc2 {[%emt 0:04:20]} cxd5 {[%emt 0:00:44]} 24. Nxd5 {[%emt 0:00:46]} b5 {[%emt 0:08:44]} 25. Qe3 {[%emt 0:10:13]} Nge6 {[%emt 0:10:00]} 26. Nf5+ {[%emt 0:02:27]} gxf5 {[%emt 0:00:27]} 27. exf5 {[%emt 0:00:02]} f6 {[%emt 0:01:45]} 28. fxe6 {[%emt 0:03:51]} Bxe6 {[%emt 0:00:02]} 29. b3 {[%emt 0:00:36]} bxc4 {[%emt 0:03:30]} 30. bxc4 {[%emt 0:00:01]} Rb8 {[%emt 0:01:00]} 31. Rab1 {[%emt 0:00:06]} Bxd5 {[%emt 0:13:23]} 32. cxd5 {[%emt 0:00:03]} Rxb1 {[%emt 0:02:44]} 33. Rxb1 {[%emt 0:00:59]} Qa8 {[%emt 0:02:24]} 34. Qd2 {[%emt 0:02:00]} Qa6 {[%emt 0:00:55]} 35. Bf5 {[%emt 0:00:31]} Rf7 {[%emt 0:01:48]} 36. Kg2 {[%emt 0:03:56]} a4 {[%emt 0:08:51]} 37. Rb4 {[%emt 0:03:39]} e4 {[%emt 0:04:32]} 38. Bxe4 {[%emt 0:04:12]} Rb7 {[%emt 0:00:43]} 39. Rxb7+ {[%emt 0:03:03]} Qxb7 {[%emt 0:00:06]} 40. Bf5 {[%emt 0:02:51]} a3 {[%emt 0:01:14]} 41. Kh3 {[%emt 0:00:22]} Qf7 {[%emt 0:02:33]} 42. Kh4 {[%emt 0:01:11]} Qb7 {[%emt 0:03:08]} 43. Qd4 {[%emt 0:00:49]} Qb2 {[%emt 0:00:20]} 44. Qg4+ {[%emt 0:00:36]} Kf8 {[%emt 0:00:00]} 45. Qg6 {[%emt 0:00:39]} Qxh2+ {[%emt 0:00:49]} 46. Bh3 {[%emt 0:00:00]} Qb2 {[%emt 0:02:01]} 47. Qxh6+ {[%emt 0:00:05]} Kf7 {[%emt 0:00:44]} 48. Qh7+ {[%emt 0:00:11]} Kf8 {[%emt 0:00:17]} 49. Qh8+ {[%emt 0:01:23]} Kf7 {[%emt 0:00:01]} 50. Qh5+ {[%emt 0:01:10]} Kf8 {[%emt 0:00:13]} 51. Qh6+ {[%emt 0:00:44]} Kf7 {[%emt 0:00:00]} 1/2-1/2

[Event "29. Klatovy A 2023"]
[Site "Klatovy"]
[Date "2023.07.04"]
[Round "4.2"]
[White "Filindash, Nikita"]
[Black "Neuman, Petr"]
[Result "0-1"]
[ECO "E94"]
[WhiteElo "2011"]
[BlackElo "2398"]
[PlyCount "108"]
[EventDate "2023.07.01"]
[EventType "swiss"]
[EventRounds "9"]
[EventCountry "CZE"]
[TimeControl "120+30"]

1. d4 {[%emt 0:00:02]} Nf6 {[%emt 0:00:09]} 2. c4 {[%emt 0:00:05]} g6 {[%emt 0:00:04]} 3. Nc3 {[%emt 0:00:04]} Bg7 {[%emt 0:00:05]} 4. e4 {[%emt 0:00:01]} O-O {[%emt 0:00:11]} 5. Nf3 {[%emt 0:00:02]} d6 {[%emt 0:00:07]} 6. Be2 {[%emt 0:00:04]} e5 {[%emt 0:00:17]} 7. O-O {[%emt 0:00:12]} Na6 {[%emt 0:00:07]} 8. Be3 {[%emt 0:00:23]} Ng4 {[%emt 0:00:12]} 9. Bg5 {[%emt 0:00:05]} Qe8 {[%emt 0:00:07]} 10. dxe5 {[%emt 0:00:04]} dxe5 {[%emt 0:00:07]} 11. h3 {[%emt 0:00:06]} h6 {[%emt 0:00:08]} 12. Bd2 {[%emt 0:00:01]} Nf6 {[%emt 0:00:12]} 13. Be3 {[%emt 0:00:03]} Qe7 {[%emt 0:00:27]} 14. Nd5 {[%emt 0:01:01]} Qd8 {[%emt 0:00:13]} 15. Qc2 {[%emt 0:00:55]} c6 {[%emt 0:00:29]} 16. Nc3 {[%emt 0:08:55]} Qe7 {[%emt 0:03:21]} 17. Rad1 {[%emt 0:08:07]} Nh5 {[%emt 0:01:32]} 18. Qd2 {[%emt 0:00:09]} Kh7 {[%emt 0:03:47]} 19. Ne1 {[%emt 0:00:49]} Nf4 {[%emt 0:01:50]} 20. Bxf4 {[%emt 0:04:53]} exf4 {[%emt 0:02:05]} 21. Nd3 {[%emt 0:02:28]} g5 {[%emt 0:00:26]} 22. Bf3 {[%emt 0:00:48]} Nc5 {[%emt 0:07:35]} 23. Rfe1 {[%emt 0:07:28]} Nxd3 {[%emt 0:06:08]} 24. Qxd3 {[%emt 0:00:14]} Be5 {[%emt 0:00:09]} 25. Nd5 {[%emt 0:02:26]} Qc5 {[%emt 0:11:43]} 26. b4 {[%emt 0:01:49]} Qd6 {[%emt 0:00:05]} 27. c5 {[%emt 0:03:31]} Qg6 {[%emt 0:00:23]} 28. Ne7 {[%emt 0:01:59]} Qf6 {[%emt 0:00:09]} 29. Nxc8 {[%emt 0:00:48]} Rfxc8 {[%emt 0:00:31]} 30. Qd7 {[%emt 0:02:32]} Rc7 {[%emt 0:00:06]} 31. Qf5+ {[%emt 0:01:07]} Kg7 {[%emt 0:01:22]} 32. Rd3 {[%emt 0:01:29]} a5 {[%emt 0:01:01]} 33. Ra3 {[%emt 0:01:58]} Qxf5 {[%emt 0:01:24]} 34. exf5 {[%emt 0:00:37]} Kf6 35. Be4 {[%emt 0:04:39]} Rd7 {[%emt 0:06:37]} 36. b5 {[%emt 0:01:08]} Rd2 37. bxc6 {[%emt 0:02:25]} bxc6 {[%emt 0:00:00]} 38. Bf3 {[%emt 0:00:00]} Bd4 39. Re2 Rxe2 {[%emt 0:00:00]} 40. Bxe2 {[%emt 0:00:00]} Kxf5 {[%emt 0:14:05]} 41. Bf3 {[%emt 0:00:18]} Ke5 {[%emt 0:03:31]} 42. Rd3 {[%emt 0:02:27]} Ra6 {[%emt 0:03:35]} 43. Rd1 {[%emt 0:04:32]} Bxc5 {[%emt 0:00:20]} 44. Rc1 {[%emt 0:00:07]} Kd6 {[%emt 0:00:13]} 45. Rd1+ {[%emt 0:00:03]} Kc7 {[%emt 0:00:07]} 46. Rc1 {[%emt 0:00:51]} Bd4 {[%emt 0:00:15]} 47. Rc2 {[%emt 0:00:25]} Kd6 {[%emt 0:03:01]} 48. Be4 {[%emt 0:02:55]} Rb6 {[%emt 0:00:48]} 49. Kf1 {[%emt 0:00:13]} c5 {[%emt 0:00:15]} 50. Ke2 {[%emt 0:00:08]} Ke5 {[%emt 0:01:00]} 51. f3 {[%emt 0:02:13]} a4 {[%emt 0:04:32]} 52. Kd3 {[%emt 0:00:04]} f5 {[%emt 0:00:34]} 53. Ba8 {[%emt 0:00:09]} a3 {[%emt 0:04:45]} 54. Kc4 {[%emt 0:00:02]} Kd6 {[%emt 0:00:22]} 0-1

[Event "29. Klatovy A 2023"]
[Site "Klatovy"]
[Date "2023.07.04"]
[Round "4.3"]
[White "Horak, Martin"]
[Black "Janous, Marek"]
[Result "1-0"]
[ECO "B67"]
[WhiteElo "2266"]
[BlackElo "2185"]
[PlyCount "41"]
[EventDate "2023.07.01"]
[EventType "swiss"]
[EventRounds "9"]
[EventCountry "CZE"]
[TimeControl "120+30"]

1. e4 {[%emt 0:00:02]} c5 {[%emt 0:04:00]} 2. Nf3 {[%emt 0:00:06]} Nc6 {[%emt 0:00:06]} 3. d4 {[%emt 0:00:13]} cxd4 {[%emt 0:00:07]} 4. Nxd4 {[%emt 0:00:03]} Nf6 {[%emt 0:00:10]} 5. Nc3 {[%emt 0:00:05]} d6 {[%emt 0:00:08]} 6. Bg5 {[%emt 0:00:18]} e6 {[%emt 0:00:16]} 7. Qd2 {[%emt 0:00:06]} a6 {[%emt 0:00:05]} 8. O-O-O {[%emt 0:00:05]} Bd7 {[%emt 0:00:08]} 9. Kb1 {[%emt 0:00:05]} Be7 {[%emt 0:00:20]} 10. f3 {[%emt 0:00:21]} Nxd4 {[%emt 0:04:05]} 11. Qxd4 {[%emt 0:00:09]} Qa5 {[%emt 0:00:25]} 12. h4 {[%emt 0:02:46]} Rc8 {[%emt 0:06:58]} 13. g4 {[%emt 0:04:04]} O-O {[%emt 0:20:00]} 14. Qd2 {[%emt 0:04:03]} Qc7 {[%emt 0:04:04]} 15. e5 {[%emt 0:01:33]} dxe5 {[%emt 0:04:17]} 16. Bxf6 {[%emt 0:00:07]} Bxf6 {[%emt 0:00:20]} 17. Qxd7 {[%emt 0:00:12]} Qb6 {[%emt 0:00:09]} 18. Qd6 {[%emt 0:10:27]} Rc6 {[%emt 0:55:40]} 19. Qa3 {[%emt 0:00:22]} Qf2 {[%emt 0:00:59]} 20. Bd3 {[%emt 0:03:19]} Rb6 {[%emt 0:03:31]} 21. g5 {[%emt 0:02:39]} 1-0

[Event "29. Klatovy A 2023"]
[Site "Klatovy"]
[Date "2023.07.04"]
[Round "4.4"]
[White "Jurek, Josef"]
[Black "Jun, Rudolf"]
[Result "1/2-1/2"]
[ECO "A06"]
[WhiteElo "2251"]
[BlackElo "2223"]
[PlyCount "44"]
[EventDate "2023.07.01"]
[EventType "swiss"]
[EventRounds "9"]
[EventCountry "CZE"]
[TimeControl "120+30"]

1. Nf3 {[%emt 0:00:16]} d5 {[%emt 0:00:34]} 2. e3 {[%emt 0:00:55]} c5 {[%emt 0:00:54]} 3. b3 {[%emt 0:01:46]} Nf6 {[%emt 0:02:10]} 4. Bb2 {[%emt 0:00:32]} Nc6 {[%emt 0:00:22]} 5. Bb5 {[%emt 0:01:18]} Bd7 {[%emt 0:00:50]} 6. O-O {[%emt 0:00:55]} a6 {[%emt 0:01:50]} 7. Bxc6 {[%emt 0:00:32]} Bxc6 {[%emt 0:00:05]} 8. d3 {[%emt 0:04:59]} g6 {[%emt 0:02:25]} 9. Ne5 {[%emt 0:03:04]} Bg7 {[%emt 0:02:02]} 10. Nxc6 {[%emt 0:01:23]} bxc6 {[%emt 0:00:08]} 11. Nd2 {[%emt 0:02:22]} O-O {[%emt 0:00:37]} 12. Qe2 {[%emt 0:02:49]} Qd6 {[%emt 0:04:26]} 13. Nf3 {[%emt 0:02:16]} Nd7 {[%emt 0:03:41]} 14. Bxg7 {[%emt 0:00:42]} Kxg7 {[%emt 0:00:06]} 15. c4 {[%emt 0:13:28]} e5 {[%emt 0:00:53]} 16. cxd5 {[%emt 0:00:45]} cxd5 {[%emt 0:00:10]} 17. e4 {[%emt 0:00:22]} f5 {[%emt 0:00:52]} 18. exd5 {[%emt 0:02:38]} Qxd5 {[%emt 0:00:06]} 19. Rac1 {[%emt 0:04:35]} a5 {[%emt 0:03:23]} 20. Qc2 {[%emt 0:02:11]} Rfb8 {[%emt 0:07:45]} 21. Qc4 {[%emt 0:07:10]} Qxc4 {[%emt 0:03:13]} 22. Rxc4 {[%emt 0:05:10]} Kf6 {[%emt 0:01:32]} 1/2-1/2

[Event "29. Klatovy A 2023"]
[Site "Klatovy"]
[Date "2023.07.04"]
[Round "4.5"]
[White "Straka, Vojtech"]
[Black "Ret, Adam Josef"]
[Result "1-0"]
[ECO "D31"]
[WhiteElo "2433"]
[BlackElo "2133"]
[PlyCount "93"]
[EventDate "2023.07.01"]
[EventType "swiss"]
[EventRounds "9"]
[EventCountry "CZE"]
[TimeControl "120+30"]

1. d4 {[%emt 0:00:06]} d5 {[%emt 0:00:06]} 2. c4 {[%emt 0:00:09]} e6 {[%emt 0:00:04]} 3. Nc3 {[%emt 0:00:09]} a6 {[%emt 0:00:18]} 4. cxd5 {[%emt 0:07:21]} exd5 {[%emt 0:00:05]} 5. Nf3 {[%emt 0:00:19]} c6 {[%emt 0:00:31]} 6. Qc2 {[%emt 0:03:13]} Bd6 {[%emt 0:05:17]} 7. Bg5 {[%emt 0:00:55]} f6 {[%emt 0:04:36]} 8. Bh4 {[%emt 0:00:46]} Ne7 {[%emt 0:00:59]} 9. e3 {[%emt 0:01:03]} Bf5 {[%emt 0:01:43]} 10. Bd3 {[%emt 0:00:18]} Qd7 {[%emt 0:01:22]} 11. O-O-O {[%emt 0:04:05]} Bxd3 {[%emt 0:03:42]} 12. Qxd3 {[%emt 0:01:30]} Qf5 {[%emt 0:01:08]} 13. e4 {[%emt 0:04:45]} dxe4 {[%emt 0:01:47]} 14. Nxe4 {[%emt 0:00:10]} Bf4+ {[%emt 0:04:13]} 15. Kb1 {[%emt 0:02:03]} O-O {[%emt 0:24:03]} 16. g3 {[%emt 0:38:55]} Bc7 {[%emt 0:05:16]} 17. g4 {[%emt 0:00:35]} Qb5 {[%emt 0:05:36]} 18. Qc2 {[%emt 0:03:33]} Nd7 {[%emt 0:03:53]} 19. Bg3 {[%emt 0:04:27]} Nd5 {[%emt 0:07:47]} 20. Nc5 {[%emt 0:16:54]} Nxc5 {[%emt 0:13:54]} 21. dxc5 {[%emt 0:00:41]} Rfe8 {[%emt 0:06:26]} 22. Rxd5 {[%emt 0:25:07]} cxd5 {[%emt 0:02:14]} 23. Bxc7 {[%emt 0:00:11]} Re2 {[%emt 0:02:00]} 24. a4 {[%emt 0:06:28]} Rxc2 {[%emt 0:02:11]} 25. axb5 {[%emt 0:00:36]} Rxc5 {[%emt 0:06:10]} 26. b6 {[%emt 0:00:31]} Kf7 {[%emt 0:07:28]} 27. Re1 {[%emt 0:01:34]} Rc4 {[%emt 0:00:10]} 28. h3 {[%emt 0:00:24]} a5 {[%emt 0:01:00]} 29. Rd1 {[%emt 0:01:22]} a4 {[%emt 0:00:44]} 30. Rxd5 {[%emt 0:02:27]} a3 {[%emt 0:00:08]} 31. bxa3 {[%emt 0:00:09]} Rxa3 {[%emt 0:00:04]} 32. Nd2 {[%emt 0:00:18]} Rc6 {[%emt 0:02:27]} 33. Ne4 {[%emt 0:02:36]} Rb3+ {[%emt 0:01:00]} 34. Ka2 {[%emt 0:00:04]} Rb4 {[%emt 0:00:53]} 35. Rc5 {[%emt 0:02:18]} Re6 {[%emt 0:01:26]} 36. f3 {[%emt 0:00:39]} g5 {[%emt 0:02:40]} 37. Rc3 {[%emt 0:00:44]} Kg6 {[%emt 0:01:20]} 38. Rb3 {[%emt 0:00:09]} Rc4 {[%emt 0:03:01]} 39. Kb2 {[%emt 0:00:14]} Rec6 {[%emt 0:01:30]} 40. Rc3 {[%emt 0:00:41]} Rb4+ {[%emt 0:00:17]} 41. Kc2 {[%emt 0:01:02]} Re6 {[%emt 0:00:57]} 42. Nc5 {[%emt 0:00:20]} Rexb6 {[%emt 0:04:30]} 43. Bxb6 {[%emt 0:00:26]} Rxb6 {[%emt 0:00:00]} 44. Nd7 {[%emt 0:01:10]} Rd6 {[%emt 0:00:14]} 45. Rc7 {[%emt 0:00:11]} Rc6+ {[%emt 0:01:29]} 46. Rxc6 {[%emt 0:00:05]} bxc6 {[%emt 0:00:05]} 47. Nb8 {[%emt 0:00:11]} 1-0

[Event "29. Klatovy A 2023"]
[Site "Klatovy"]
[Date "2023.07.04"]
[Round "4.6"]
[White "Hurdzan, Tomas"]
[Black "Pycha, Patrik"]
[Result "1-0"]
[ECO "C42"]
[WhiteElo "2309"]
[BlackElo "2058"]
[PlyCount "93"]
[EventDate "2023.07.01"]
[EventType "swiss"]
[EventRounds "9"]
[EventCountry "CZE"]
[TimeControl "120+30"]

1. e4 {[%emt 0:00:05]} e5 {[%emt 0:00:11]} 2. Nf3 {[%emt 0:00:09]} Nf6 {[%emt 0:00:05]} 3. Nc3 {[%emt 0:02:23]} Bb4 {[%emt 0:00:57]} 4. Nxe5 {[%emt 0:01:07]} O-O {[%emt 0:02:11]} 5. Be2 {[%emt 0:02:08]} Re8 {[%emt 0:02:25]} 6. Nd3 {[%emt 0:00:18]} Bxc3 {[%emt 0:00:53]} 7. dxc3 {[%emt 0:00:07]} Nxe4 {[%emt 0:00:24]} 8. Nf4 {[%emt 0:05:46]} Nc6 {[%emt 0:06:43]} 9. O-O {[%emt 0:01:00]} d6 {[%emt 0:01:29]} 10. Re1 {[%emt 0:13:48]} Nc5 {[%emt 0:07:14]} 11. c4 {[%emt 0:14:39]} Bf5 {[%emt 0:03:36]} 12. Nd5 {[%emt 0:02:00]} a5 {[%emt 0:04:59]} 13. b3 {[%emt 0:07:20]} Re6 {[%emt 0:10:38]} 14. Be3 {[%emt 0:09:08]} Nb4 {[%emt 0:03:40]} 15. Nxb4 {[%emt 0:01:17]} axb4 {[%emt 0:02:30]} 16. Qd2 {[%emt 0:02:09]} Qe7 {[%emt 0:02:57]} 17. Bf3 {[%emt 0:04:01]} Re8 {[%emt 0:04:44]} 18. Qxb4 {[%emt 0:15:44]} Bxc2 {[%emt 0:02:32]} 19. Qc3 {[%emt 0:00:42]} Bg6 {[%emt 0:02:51]} 20. Rf1 {[%emt 0:06:00]} Ne4 {[%emt 0:04:44]} 21. Qb2 {[%emt 0:00:37]} h5 {[%emt 0:06:59]} 22. a4 {[%emt 0:02:00]} h4 {[%emt 0:00:38]} 23. h3 {[%emt 0:00:20]} c6 {[%emt 0:02:35]} 24. a5 {[%emt 0:04:59]} Ng5 {[%emt 0:07:29]} 25. Bxg5 {[%emt 0:00:49]} Qxg5 {[%emt 0:00:06]} 26. Qd4 {[%emt 0:05:53]} Bf5 {[%emt 0:03:33]} 27. Kh1 {[%emt 0:00:36]} Rf6 {[%emt 0:06:10]} 28. Qc3 {[%emt 0:03:54]} Qf4 {[%emt 0:02:25]} 29. Qc1 {[%emt 0:01:36]} Qd4 {[%emt 0:03:19]} 30. Qd1 {[%emt 0:02:16]} Qc3 {[%emt 0:03:09]} 31. a6 {[%emt 0:06:20]} bxa6 {[%emt 0:00:37]} 32. Bxc6 {[%emt 0:00:50]} Re5 {[%emt 0:10:58]} 33. Rc1 {[%emt 0:03:46]} Qb2 {[%emt 0:01:28]} 34. Bf3 {[%emt 0:02:34]} Ra5 {[%emt 0:03:44]} 35. Qe1 {[%emt 0:02:47]} Ra2 {[%emt 0:01:14]} 36. Qc3 {[%emt 0:00:42]} Qa3 {[%emt 0:07:08]} 37. Ra1 {[%emt 0:00:18]} a5 {[%emt 0:00:59]} 38. Kg1 {[%emt 0:00:45]} a4 {[%emt 0:03:33]} 39. Rxa2 {[%emt 0:00:27]} Qxa2 {[%emt 0:00:05]} 40. bxa4 {[%emt 0:00:23]} Qxa4 {[%emt 0:00:36]} 41. Ra1 {[%emt 0:00:07]} Qc2 {[%emt 0:01:41]} 42. Qd4 {[%emt 0:00:02]} Qd3 {[%emt 0:02:19]} 43. Qxh4 {[%emt 0:01:02]} Rh6 {[%emt 0:00:16]} 44. Qf4 {[%emt 0:00:22]} Re6 {[%emt 0:01:53]} 45. Bd5 {[%emt 0:01:06]} Rf6 {[%emt 0:02:23]} 46. Qh4 {[%emt 0:00:23]} g5 {[%emt 0:02:01]} 47. Ra8+ {[%emt 0:00:55]} 1-0

[Event "29. Klatovy A 2023"]
[Site "Klatovy"]
[Date "2023.07.04"]
[Round "4.7"]
[White "Jordanov, Mihail"]
[Black "Flajsman, Pavel"]
[Result "1/2-1/2"]
[ECO "C77"]
[WhiteElo "2140"]
[BlackElo "2192"]
[PlyCount "64"]
[EventDate "2023.07.01"]
[EventType "swiss"]
[EventRounds "9"]
[EventCountry "CZE"]
[TimeControl "120+30"]

1. e4 {[%emt 0:00:05]} e5 {[%emt 0:00:10]} 2. Nf3 {[%emt 0:00:11]} Nc6 {[%emt 0:00:15]} 3. Bb5 {[%emt 0:00:20]} a6 {[%emt 0:00:08]} 4. Ba4 {[%emt 0:00:07]} Nf6 {[%emt 0:00:06]} 5. d3 {[%emt 0:01:11]} Bc5 {[%emt 0:00:48]} 6. Bxc6 {[%emt 0:00:32]} dxc6 {[%emt 0:00:09]} 7. Nbd2 {[%emt 0:00:17]} Qe7 {[%emt 0:13:45]} 8. Nc4 {[%emt 0:05:11]} Nd7 {[%emt 0:00:25]} 9. O-O {[%emt 0:07:01]} O-O {[%emt 0:10:59]} 10. Ne3 {[%emt 0:07:51]} Bxe3 {[%emt 0:00:36]} 11. Bxe3 {[%emt 0:00:10]} c5 {[%emt 0:00:37]} 12. Qd2 {[%emt 0:14:14]} Re8 {[%emt 0:07:21]} 13. Qc3 {[%emt 0:21:03]} a5 {[%emt 0:02:22]} 14. a3 {[%emt 0:06:57]} a4 {[%emt 0:14:02]} 15. Nd2 {[%emt 0:08:38]} b6 {[%emt 0:14:16]} 16. b4 {[%emt 0:09:52]} axb3 {[%emt 0:00:50]} 17. cxb3 {[%emt 0:00:20]} Nf6 {[%emt 0:21:30]} 18. b4 {[%emt 0:11:27]} cxb4 {[%emt 0:00:57]} 19. axb4 {[%emt 0:00:18]} Ba6 {[%emt 0:00:33]} 20. Qb3 {[%emt 0:07:03]} Qd7 {[%emt 0:03:20]} 21. Nc4 {[%emt 0:00:43]} h6 {[%emt 0:13:48]} 22. h3 {[%emt 0:03:21]} Bxc4 {[%emt 0:11:11]} 23. Qxc4 {[%emt 0:00:09]} Rxa1 {[%emt 0:01:58]} 24. Rxa1 {[%emt 0:00:05]} Re6 {[%emt 0:00:17]} 25. Rc1 {[%emt 0:08:05]} Ne8 {[%emt 0:00:37]} 26. f4 {[%emt 0:00:16]} Rd6 {[%emt 0:03:13]} 27. Rc3 {[%emt 0:01:21]} exf4 {[%emt 0:01:02]} 28. Bxf4 {[%emt 0:00:14]} Rd4 {[%emt 0:01:08]} 29. Qb3 {[%emt 0:00:10]} Qb5 {[%emt 0:01:52]} 30. Rc4 {[%emt 0:01:12]} Qd7 {[%emt 0:03:59]} 31. Rc3 {[%emt 0:03:51]} Qb5 {[%emt 0:00:50]} 32. Rc4 {[%emt 0:04:15]} Qd7 {[%emt 0:00:01]} 1/2-1/2

[Event "29. Klatovy A 2023"]
[Site "Klatovy"]
[Date "2023.07.04"]
[Round "4.8"]
[White "Dvorak, Jan"]
[Black "Hladky, Tadeas"]
[Result "1/2-1/2"]
[ECO "D12"]
[WhiteElo "2176"]
[BlackElo "2046"]
[PlyCount "93"]
[EventDate "2023.07.01"]
[EventType "swiss"]
[EventRounds "9"]
[EventCountry "CZE"]
[TimeControl "120+30"]

1. d4 {[%emt 0:00:02]} d5 {[%emt 0:00:06]} 2. c4 {[%emt 0:00:09]} c6 {[%emt 0:00:05]} 3. Nf3 {[%emt 0:00:51]} Nf6 {[%emt 0:00:10]} 4. e3 {[%emt 0:00:35]} Bf5 {[%emt 0:00:33]} 5. Nc3 {[%emt 0:00:56]} e6 {[%emt 0:00:19]} 6. Nh4 {[%emt 0:03:28]} Bg4 {[%emt 0:00:53]} 7. Qb3 {[%emt 0:03:46]} Qb6 {[%emt 0:00:45]} 8. c5 {[%emt 0:04:55]} Qc7 {[%emt 0:00:55]} 9. h3 {[%emt 0:00:38]} Bh5 {[%emt 0:02:57]} 10. g4 {[%emt 0:04:00]} Bg6 {[%emt 0:00:10]} 11. Nxg6 {[%emt 0:01:46]} hxg6 {[%emt 0:00:15]} 12. Bg2 {[%emt 0:00:53]} b6 {[%emt 0:09:20]} 13. cxb6 {[%emt 0:05:46]} axb6 {[%emt 0:02:06]} 14. Bd2 {[%emt 0:07:24]} Be7 {[%emt 0:01:58]} 15. Rc1 {[%emt 0:05:28]} Nbd7 {[%emt 0:15:59]} 16. e4 {[%emt 0:25:28]} dxe4 {[%emt 0:06:09]} 17. Nxe4 {[%emt 0:02:18]} Nd5 {[%emt 0:02:11]} 18. O-O {[%emt 0:04:44]} O-O {[%emt 0:00:50]} 19. f4 {[%emt 0:01:36]} N7f6 {[%emt 0:07:43]} 20. Ng5 {[%emt 0:05:33]} Qd7 {[%emt 0:05:19]} 21. Nf3 {[%emt 0:11:03]} c5 {[%emt 0:00:26]} 22. Ne5 {[%emt 0:02:05]} Qa4 {[%emt 0:00:34]} 23. Qxa4 {[%emt 0:02:13]} Rxa4 {[%emt 0:00:15]} 24. g5 {[%emt 0:00:05]} Nh5 {[%emt 0:01:15]} 25. Nc4 {[%emt 0:22:07]} Rb8 {[%emt 0:14:48]} 26. a3 {[%emt 0:03:30]} cxd4 {[%emt 0:00:52]} 27. Ne5 {[%emt 0:01:00]} Ne3 {[%emt 0:05:38]} 28. Rf2 {[%emt 0:00:08]} Bd6 {[%emt 0:07:16]} 29. Bc6 {[%emt 0:02:24]} Bxe5 {[%emt 0:01:56]} 30. fxe5 {[%emt 0:02:15]} b5 {[%emt 0:04:00]} 31. Rc5 {[%emt 0:01:38]} Nd1 {[%emt 0:03:04]} 32. Rf3 {[%emt 0:02:36]} Rc4 {[%emt 0:11:42]} 33. Rxb5 {[%emt 0:00:33]} Rxb5 {[%emt 0:00:10]} 34. Bxb5 {[%emt 0:00:03]} Rc2 {[%emt 0:00:20]} 35. Rd3 {[%emt 0:01:14]} Rxb2 {[%emt 0:00:46]} 36. a4 {[%emt 0:01:27]} Nc3 {[%emt 0:03:27]} 37. Bxc3 {[%emt 0:00:26]} dxc3 {[%emt 0:00:05]} 38. Rxc3 {[%emt 0:00:04]} Nf4 {[%emt 0:00:08]} 39. Ra3 {[%emt 0:00:45]} Kf8 {[%emt 0:01:27]} 40. Bc6 {[%emt 0:01:43]} Ne2+ {[%emt 0:00:22]} 41. Kf1 {[%emt 0:00:18]} Nd4 {[%emt 0:00:09]} 42. Be4 {[%emt 0:00:10]} Rb3 {[%emt 0:00:31]} 43. Rxb3 {[%emt 0:00:42]} Nxb3 {[%emt 0:00:06]} 44. Ke2 {[%emt 0:00:11]} Ke7 {[%emt 0:00:25]} 45. Bd3 {[%emt 0:00:51]} Nc5 {[%emt 0:05:07]} 46. Bb5 {[%emt 0:01:00]} f6 {[%emt 0:00:51]} 47. exf6+ {[%emt 0:00:28]} 1/2-1/2